Cogmind - Beta 11.1 @@@ ROGUE MODE // 2022.04.22 @ 15:19:46 Player: RNGesus Result: Destroyed by D-53 Grenadier with Mini Grenade Launcher Performance ------------- Evolutions (0) 0 Regions Visited (2) 400 Robots Destroyed (25) 125 Value Destroyed (403) 403 Prototype IDs (0) 0 Alien Tech Used (0) 0 Bonus (0) 0 TOTAL SCORE: 928 Bonus ------- None Cogmind --------- Core Integrity 0/250 Matter 212/300 Energy 66/100 System Corruption 2% Temperature Cool (0) Movement Treading (480) Ox4 Location -10/Mines Parts ------- > --- POWER (1) -------- (None) > --- PROPULSION (2) --- Light Treads > --- UTILITY (2) ------ Huge Storage Unit Core Shielding > --- WEAPON (2) ------- Autogun Autogun > --- INVENTORY (25) --- Light Treads Small Storage Unit Medium Storage Unit Structural Scanner Machine Analyzer Seismic Detector Hacking Suite EM Pulse Gun Assault Rifle Assault Rifle Light Assault Rifle Peak State ------------ > --- POWER ------------ Light Ion Engine > --- PROPULSION ------- Light Treads Compact Wheel > --- UTILITY ---------- Huge Storage Unit Core Shielding > --- WEAPON ----------- Autogun Autogun > --- INVENTORY -------- Light Treads Light Treads Light Treads Small Storage Unit Medium Storage Unit Structural Scanner Machine Analyzer Seismic Detector Hacking Suite EM Pulse Gun Assault Rifle Assault Rifle Light Assault Rifle Autogun Autogun [Rating: 11] Favorites ----------- Power Light Ion Engine Engine Light Ion Engine Propulsion Light Treads Treads Light Treads Wheel Compact Wheel Utility Huge Storage Unit Storage Huge Storage Unit Protection Core Shielding Weapon EM Pulse Gun Energy Gun EM Pulse Gun Ballistic Gun Assault Rifle Build | -11 -10 -10 ------- Run | Scr Mat Min Slots Evolved . | . . . Power . | . . . Propulsion . | . . . Utility . | . . . Weapon . | . . . Parts Attached 18 | 6 8 4 Power 3 | 1 2 . Engine 3 | 1 2 . Core . | . . . Reactor . | . . . Propulsion 6 | 2 2 2 Treads 4 | 2 . 2 Leg . | . . . Wheel 2 | . 2 . Hover . | . . . Flight . | . . . Utility 3 | 1 2 . Device . | . . . Storage 2 | 1 1 . Processor . | . . . Hackware . | . . . Protection 1 | . 1 . Artifact . | . . . Weapon 6 | 2 2 2 Energy Gun 1 | 1 . . Energy Cannon . | . . . Ballistic Gun 5 | 1 2 2 Ballistic Cannon . | . . . Launcher . | . . . Special Weapon . | . . . Impact Weapon . | . . . Slashing Weapon . | . . . Piercing Weapon . | . . . Special Melee Weapon . | . . . Unidentified Prototypes . | . . . Parts Lost 8 | . 2 6 Power 3 | . 2 1 Propulsion 3 | . . 3 Utility . | . . . Weapon 2 | . . 2 Highest Loss Streak 6 | . 1 6 To Critical Strikes . | . . . Average Slot Usage (%) 96 | . 95 98 Engine 13 | . 14 13 Treads 16 | . 16 14 Wheel 11 | . 11 12 Storage 14 | . 14 14 Protection 10 | . 10 14 Energy Gun 10 | . 12 . Ballistic Gun 17 | . 15 28 Naked Turns . | . . . Heaviest Build 90 | 14 90 90 Greatest Support 40 | 40 40 16 Greatest Overweight (x) 8 | . 8 5 Average Overweight (x) 4 | . 4 5 Largest Inventory Capacity 25 | 8 25 25 Average Capacity 22 | 7 22 25 Most Carried 16 | 3 16 15 Average Carried 10 | 1 10 14 Final Capacity 25 | 8 25 25 Final Carried 15 | 3 15 11 Class Distribution -------------------- 100% | Mutant Dominant Class ---------------- Mutant | -10/Materials Mutant | -10/Mines Resources | -11 -10 -10 ----------- Run | Scr Mat Min Matter Collected 478 | 254 224 . Remotely . | . . . Salvage Created 766 | 13 753 . Parts 56 | 3 53 . Haulers Intercepted 1 | . 1 . Recyclers Shooed 2 | . 2 . Parts Field Recycled . | . . . Retrieved Matter . | . . . Parts Self-Destructed . | . . . Prevented . | . . . Kills | -11 -10 -10 ------- Run | Scr Mat Min Combat Hostiles Destroyed 14 | . 14 . Guns 12 | . 12 . AOE 1 | . 1 . Classes Destroyed 9 | 1 8 . Worker 4 | . 4 . Builder 2 | . 2 . Tunneler 1 | 1 . . Hauler 1 | . 1 . Recycler 1 | . 1 . Mechanic 1 | . 1 . Operator 1 | . 1 . Swarmer 6 | . 6 . Grunt 8 | . 8 . Best Kill Streak 9 | 1 9 . Combat Bots Only 7 | . 7 . Max Kills in Single Turn 2 | 1 2 . Gunslinging . | . . . Exploded 1 | . 1 . Melee . | . . . Uniques/NPCs Destroyed . | . . . Combat | -11 -10 -10 -------- Run | Scr Mat Min Damage Taken 1268 | . 457 811 Core 250 | . 81 169 Absorbed by Shields . | . . . Redirected to Shielding 36 | . 9 27 Core Remaining (%) 100 | 100 . . Volleys Fired 55 | 1 47 7 Largest 2 | 2 2 2 Hottest 63 | 60 63 46 Shots Fired 112 | 2 96 14 Gun 112 | 2 96 14 Cannon . | . . . Launcher . | . . . Special . | . . . Kinetic 63 | 1 48 14 Thermal . | . . . Explosive . | . . . Electromagnetic 49 | 1 48 . Robot Hit Streak 9 | 2 9 3 Robot Miss Streak 5 | . 5 2 Penetration Max . | . . . Secondary Targets 3 | . 3 . Max Gunslinging Chain 1 | . 1 . Shots Hit Robots 65 | 2 55 8 Core Hits 35 | 1 31 3 Critical Kills . | . . . Critical Parts Destroyed 2 | . 2 . Critical Strikes 2 | . 2 . Destroy 2 | . 2 . Melee Attacks . | . . . Impact . | . . . Slashing . | . . . Piercing . | . . . Sneak Attacks . | . . . Combat Hostiles . | . . . Follow-up Attacks . | . . . Damage Inflicted 1160 | 23 1004 133 Guns 967 | 23 811 133 Cannons . | . . . Explosions 138 | . 138 . Melee . | . . . Ramming 55 | . 55 . Kinetic 553 | 11 409 133 Thermal 138 | . 138 . Explosive . | . . . Electromagnetic 414 | 12 402 . Impact . | . . . Slashing . | . . . Piercing . | . . . Highest Corruption 2 | . 2 2 Average Corruption 2 | . 2 2 Corruption Purged . | . . . Corruption Blocked . | . . . Effects 17 | . 11 6 Message Errors 3 | . 3 . Matter Fused 2 | . . 2 Heat Flow Errors 1 | . 1 . Energy Discharges 2 | . 1 1 Data Loss (minor) 6 | . 3 3 Data Loss (major) 1 | . 1 . Misfires 2 | . 2 . Overload Shots . | . . . Overflow Damage 5 | . 5 . Projectiles . | . . . Explosions 5 | . 5 . Melee . | . . . Knockbacks 1 | . 1 . Impact 1 | . 1 . Kinetic . | . . . Secondary . | . . . Self-Inflicted Damage 27 | . 27 . Shots . | . . . Rammed 2 | . 2 . Targets Rammed 2 | . 2 . Kicked . | . . . Crushed . | . . . Highest Temperature 84 | . 84 12 Average Temperature 32 | . 35 6 Received Heat Transfer 111 | . 111 . Siege Activations . | . . . Robots Corrupted 1 | . 1 . Combat Hostiles 1 | . 1 . Parts Fried 1 | . 1 . Impact Corruptions . | . . . Robots Melted . | . . . Combat Hostiles . | . . . Parts Melted . | . . . Heat Transferred 250 | . 250 . Parts Sabotaged . | . . . Parts Stolen . | . . . Parts Stripped . | . . . Power Chain Reactions 2 | . 2 . Missiles Intercepted . | . . . Alert | -11 -10 -10 ------- Run | Scr Mat Min Peak Influence 341 | 5 341 47 Initial 47 | . 3 47 Average 162 | 1 198 45 Maximum Alert Level 1 | . 1 . Low Security (%) 70 | 100 61 100 Level 1 29 | . 38 . Level 2 . | . . . Level 3 . | . . . Level 4 . | . . . Level 5 . | . . . High Security . | . . . Max Security . | . . . Squads Dispatched 3 | . 3 . Investigation 2 | . 2 . Extermination . | . . . Reinforcement 1 | . 1 . Assault . | . . . Garrison . | . . . Intercept . | . . . Searches Triggered . | . . . Construction Impeded . | . . . Haulers Reinforced . | . . . Active Scanning Responses . | . . . Cargo Convoy Interrupts . | . . . Stealth | -11 -10 -10 --------- Run | Scr Mat Min Distress Signals 3 | . 3 . Communications Jammed . | . . . Distress Signals . | . . . Times Spotted 33 | . 31 2 Peak Tracking Total 6 | . 6 2 Tactical Retreats 1 | . 1 . Traps | -11 -10 -10 ------- Run | Scr Mat Min Traps Triggered 1 | . 1 . Indirectly . | . . . Trap Hack Attempts . | . . . Triggered . | . . . Disarmed . | . . . Reprogrammed . | . . . Reused . | . . . Traps Extracted . | . . . Installed . | . . . Triggered 1 | . 1 . Machines | -11 -10 -10 ---------- Run | Scr Mat Min Machines Disabled . | . . . Max in Single Turn . | . . . Machines Sabotaged . | . . . Garrisons Compromised . | . . . Overloaded Fab Kills . | . . . Hacking | -11 -10 -10 --------- Run | Scr Mat Min Machines Accessed 4 | . 4 . Terminals 3 | . 3 . Fabricators . | . . . Repair Stations . | . . . Recycling Units 1 | . 1 . Scanalyzers . | . . . Garrison Access . | . . . Total Hacks 13 | . 13 . Successful 6 | . 6 . Failed 7 | . 7 . Catastrophic . | . . . Database Lockouts . | . . . Manual 12 | . 12 . Terminals 12 | . 12 . Fabricators . | . . . Repair Stations . | . . . Recycling Units 1 | . 1 . Scanalyzers . | . . . Garrison Access . | . . . Terminal Hacks 5 | . 5 . Part Schematic 2 | . 2 . Robot Analysis 2 | . 2 . Hauler Manifests 1 | . 1 . Fabricator Hacks . | . . . Repair Station Hacks . | . . . Recycling Unit Hacks . | . . . Scanalyzer . | . . . Garrison Access Hacks . | . . . Unauthorized Hacks 1 | . 1 . Terminals . | . . . Fabricators . | . . . Repair Stations . | . . . Recycling Units 1 | . 1 . Tunnel 1 | . 1 . Scanalyzers . | . . . Garrison Access . | . . . Data Cores Recovered . | . . . Used . | . . . Hacking Detections 2 | . 2 . Full Trace Events 1 | . 1 . Feedback Events . | . . . Feedback Blocked . | . . . Robot Schematics Acquired . | . . . Robots Built . | . . . Authchips . | . . . Time . | . . . Total Robot Build Rating . | . . . Part Schematics Acquired 2 | . 2 . Parts Built . | . . . Authchips . | . . . Time . | . . . Total Part Build Rating . | . . . Parts Repaired . | . . . Time . | . . . Parts Recycled . | . . . Recycled Matter . | . . . Retrieved Matter . | . . . Retrieved Components . | . . . Parts Scanalyzed . | . . . Part Schematics Acquired . | . . . Parts Damaged . | . . . Bothacking | -11 -10 -10 ------------ Run | Scr Mat Min Used RIF Installer . | . . . Robots Hacked . | . . . Non-combat . | . . . Combat . | . . . Robot Hacks Applied . | . . . Relay Couplers Released . | . . . Fabnet Peak Effective % . | . . . Robots Rewired . | . . . Allies Hacked . | . . . Hacks Repelled . | . . . Allies | -11 -10 -10 -------- Run | Scr Mat Min Total Allies . | . . . Largest Group . | . . . Highest-Rated Group . | . . . Highest-Rated Ally . | . . . Total Orders . | . . . Ally Attacks . | . . . Total Damage . | . . . Kills . | . . . Allies Corrupted . | . . . Allies Melted . | . . . Intel | -11 -10 -10 ------- Run | Scr Mat Min Robot Analysis Total 2 | . 2 . Derelict Logs Recovered . | . . . Drone Launches . | . . . Drone Recoveries . | . . . Exploration | -11 -10 -10 ------------- Run | Scr Mat Min Turns Passed 1889 | 85 1469 335 Spaces Moved 959 | 45 736 178 Core 1 | 1 . . Treads 158 | 44 114 . Legs . | . . . Wheels 800 | . 622 178 Hover . | . . . Flight . | . . . Fastest Speed 50 | 50 160 175 Average Speed 174 | 157 175 175 Slowest Speed 320 | 160 320 175 Overloaded Moves . | . . . Propulsion Burnouts . | . . . Robots Hopped . | . . . Cave-ins Triggered . | . . . Exploration Rate (%) 45 | 3 96 36 Regions Visited 2 Branch Regions 1 Pre-discovered Areas 1 | . 1 . Known Exits Taken . | . . . Unknown Exits Taken 2 | 1 1 . Scrap Searched . | . . . Spaces Dug . | . . . Terrain Destroyed 5 | . 5 . Melee . | . . . Projectile . | . . . AOE 5 | . 5 . Terrain Rammed . | . . . Walls Destroyed . | . . . Machines Disabled . | . . . Actions | -11 -10 -10 --------- Run | Scr Mat Min Total 1067 | 54 821 192 Wait 15 | . 12 3 Move 957 | 44 735 178 Hop . | . . . Pick Up 15 | 3 12 . Fast Attach 9 | 6 3 . Attach 7 | . 3 4 Detach 3 | . 3 . Swap 2 | . 2 . Drop 2 | . 2 . Fire 55 | 1 47 7 Melee . | . . . Ram 2 | . 2 . Kick . | . . . Crush . | . . . Escape Stasis . | . . . Rewire . | . . . Trap . | . . . Miscellaneous . | . . . Route ------- -11/Scrapyard -10/Materials (discovered 4 exits: [*Mat x3] / [*Min]) -10/Mines (discovered 2 exits: [*Mat x2]) History --------- Turn | Location | Event 7 | -11/Scrapyard | Discovered new exit (range 15) 86 | -11/Scrapyard | Entered Materials 208 | -10/Materials | Discovered new exit (range 15) 315 | -10/Materials | Build established: Mutant 337 | -10/Materials | Destroyed 7 combat bots 364 | -10/Materials | Discovered new exit (range 15) 484 | -10/Materials | Discovered new exit (range 10) 1300 | -10/Materials | Discovered new exit (range 7) 1555 | -10/Materials | Entered Mines 1650 | -10/Mines | Discovered new exit (range 10) 1793 | -10/Mines | Discovered new exit (range 7) 1814 | -10/Mines | Assembled infested the area 1879 | -10/Mines | Core integrity fell below 50% 1883 | -10/Mines | Core integrity fell below 20% 1890 | -10/Mines | Destroyed by D-53 Grenadier with Mini Grenade Launcher Last Messages --------------- 01650_ K-01 Serf collects debris. 01653_ System corrupted: Component data lost. 01658_ K-01 Serf collects debris. 01692_ System corrupted: Matter fused (-8). 01692_ K-01 Serf collects debris. 01768_ System corrupted: Component data lost. 01769_ K-01 Serf collects debris. 01793_ EXIT=FOUND 01804_ System corrupted: Energy discharge (-26). 01814_ ALERT: Infestation in the mines, dispatching Demolisher response squad. 01869_ Com. Wheel destroyed. 01875_ The unstable cave ceiling collapses. 01880_ Lgt. Treads destroyed. 01883_ Lgt. Ion Engine destroyed. 01885_ The unstable cave ceiling collapses. 01886_ Autogun destroyed. 01887_ The unstable cave ceiling collapses. 01888_ Lgt. Treads destroyed. 01889_ The unstable cave ceiling collapses. Map ----- +----------------------------------------------------+ | | | | | | | | | | | | | | | | | | | | | | | | | | | | | | | ?????????????????????????????????????????????????? | | ?????????????????????????????????????????????????? | | ????????????????????????????????##############???? | | ????????????????????????######### ## #???? | | ????????????????????????# #???? | | ??????????######??????### < ## #???? | | ?########## ##????## ## ## #???? | | ?# ##??## ###### ## ??? | | ?# ##?# ###?## ### ?? | | ## #### ### # ######## ###### #? | | #??# ## @ d #???? #? | | #??# %d # #??? ????#? | | #####??# ????? | | #??????## ### ? ???? | | #???????# ! ##???? # ##? ##???? | | #??###??# ####???????????????#????? | | #? ##?## ! ##???????????????????????? | | ## #??## ##????????????????????????? | | # #??## ## #?????????????????????????? | | #??# ##### #????????????????????????? | | ### ##???# #???????????????????????? | | # ##???# #??????????????????????? | | ??# #???# ??????????????????????? | | ??######## #???# ??????????????????????? | | ???????## ##???# ???????????????????????? | | ?????### #???? ???????????????????????? | | ????## #???? ????????????????????????? | | ????# ##????? ?????????????????????????? | | ????# ## #???????????????????????????????????? | | ????# #?# #???????????????????????????????????? | | ########??# #???????????????????????????????????? | | #?????# ##??????????????????????????????????? | | ### ###???# ! ####???????????????????????????????? | | ??# #???# ##??????????????????????????????? | | ??## #??## < #??????????????????????????????? | +----------------------------------------------------+ Best States ------------- Heat Dissipation 25 Energy Generation 10 Energy Capacity 250 Matter Stores 300 Matter Capacity 300 Sight Range 16 Terrain Scan Density 10 Core Shielding 20 Evasion (%) 40 Recoil Reduction 2 Item Schematics ----------------- Huge Storage Unit | -10/Materials | Hacked Hcp. Storage Unit | -10/Materials | Hacked Robot Schematics ------------------ None Fabricated ------------ Nothing Alien Tech Used ----------------- None Achievements -------------- None Challenges ------------ None Game ------ Seed LaserMatterAccelerator Manual? 0 Play Time 00:08:16 Cumulative 350.7 hours Start 2022.04.22 @ 15:12:35 End 2022.04.22 @ 15:19:46 Sessions 1 Manual Loads 0 Difficulty Rogue Special Mode None Game No. 513 Rogue 513 Adventurer 0 Explorer 0 Win Type - Total 6 Types 4/0/1/1/0/0/0/0/0 Lore% 82 Gallery% 84 Achievement% 66 Wizard Run 0 Options --------- ASCII 0 Keyboard 1 Movement Numpad Keybinds 0 Fullscreen 2 Font 24/Smallcaps Map View 76x50 Tactical HUD 1 Map Filters NONE Filters NONE Steam 1 RUN: b03d4f9b-366a-496c-85b5-730fb9ad46a9